[Event "Late-Titled-Tuesday-Blitz-September-19-2023"]
[Site "Chess.com"]
[Date "2023.09.19"]
[Round "3"]
[White "ArtemDyachuk"]
[Black "Njal28"]
[Result "0-1"]
[WhiteElo "2714"]
[BlackElo "3113"]
[TimeControl "180+1"]
[EndTime "14:27:39 PDT"]
[Termination "Njal28 won on time"]

1. e4 {[%clk 0:02:50.8]} 1... c5 {[%clk 0:03:00.1]} 2. Nf3 {[%clk 0:02:49.9]}
2... e6 {[%clk 0:02:59.1]} 3. d4 {[%clk 0:02:49.6]} 3... cxd4 {[%clk 0:02:59.2]}
4. Nxd4 {[%clk 0:02:49.4]} 4... Nf6 {[%clk 0:02:59.6]} 5. Nc3 {[%clk 0:02:47.3]}
5... Nc6 {[%clk 0:03:00]} 6. Ndb5 {[%clk 0:02:41.8]} 6... Bb4 {[%clk 0:02:55.9]}
7. a3 {[%clk 0:02:38.8]} 7... Bxc3+ {[%clk 0:02:55.7]} 8. Nxc3 {[%clk
0:02:38.3]} 8... d5 {[%clk 0:02:56.3]} 9. exd5 {[%clk 0:02:37.8]} 9... exd5
{[%clk 0:02:57.2]} 10. Bd3 {[%clk 0:02:35.6]} 10... O-O {[%clk 0:02:55.9]} 11.
O-O {[%clk 0:02:35.3]} 11... Bg4 {[%clk 0:02:51.7]} 12. f3 {[%clk 0:02:32.6]}
12... Bh5 {[%clk 0:02:52.3]} 13. Kh1 {[%clk 0:02:29.3]} 13... d4 {[%clk
0:02:42.9]} 14. Ne4 {[%clk 0:02:25.3]} 14... Nxe4 {[%clk 0:02:42.7]} 15. Bxe4
{[%clk 0:02:26.2]} 15... Re8 {[%clk 0:02:41.4]} 16. Bf4 {[%clk 0:02:18.1]} 16...
Rxe4 {[%clk 0:02:39.3]} 17. Bg3 {[%clk 0:02:02.3]} 17... Re8 {[%clk 0:02:37.7]}
18. Qd2 {[%clk 0:02:00.8]} 18... Bg6 {[%clk 0:02:38]} 19. Rad1 {[%clk
0:01:59.8]} 19... h6 {[%clk 0:02:36.3]} 20. c3 {[%clk 0:01:59.5]} 20... dxc3
{[%clk 0:02:31.8]} 21. Qxc3 {[%clk 0:02:00.4]} 21... Qf6 {[%clk 0:02:31.6]} 22.
Qb3 {[%clk 0:01:58.6]} 22... Re7 {[%clk 0:02:08.4]} 23. Rd6 {[%clk 0:01:57]}
23... Qf5 {[%clk 0:02:08.4]} 24. Rfd1 {[%clk 0:01:55]} 24... Rae8 {[%clk
0:02:03.8]} 25. h3 {[%clk 0:01:51.5]} 25... Qc2 {[%clk 0:01:54.5]} 26. Qd5
{[%clk 0:01:46.4]} 26... Kh7 {[%clk 0:01:41.4]} 27. Rd2 {[%clk 0:01:41.9]} 27...
Qf5 {[%clk 0:01:37.1]} 28. Qc4 {[%clk 0:01:39.9]} 28... Qa5 {[%clk 0:00:39.8]}
29. Kh2 {[%clk 0:01:35.2]} 29... Qf5 {[%clk 0:00:28]} 30. Kg1 {[%clk 0:01:05.5]}
30... Qb1+ {[%clk 0:00:27.8]} 31. Kh2 {[%clk 0:01:05.6]} 31... Ne5 {[%clk
0:00:28.4]} 32. Qc3 {[%clk 0:00:49.4]} 32... Qf1 {[%clk 0:00:24.9]} 33. Rd1
{[%clk 0:00:46]} 33... Qe2 {[%clk 0:00:20.4]} 34. R1d2 {[%clk 0:00:43.8]} 34...
Qf1 {[%clk 0:00:05.9]} 35. Rd1 {[%clk 0:00:41.7]} 35... Nxf3+ {[%clk 0:00:05]}
36. Qxf3 {[%clk 0:00:41.4]} 36... Qxf3 {[%clk 0:00:05.3]} 37. gxf3 {[%clk
0:00:42.3]} 37... Re2+ {[%clk 0:00:05.5]} 38. Kh1 {[%clk 0:00:27.1]} 38... Rxb2
{[%clk 0:00:06.4]} 39. Rd7 {[%clk 0:00:21.2]} 39... Ree2 {[%clk 0:00:07.3]} 40.
Rg1 {[%clk 0:00:16.1]} 40... Bh5 {[%clk 0:00:07.3]} 41. Rd3 {[%clk 0:00:14.6]}
41... Red2 {[%clk 0:00:07.1]} 42. Re3 {[%clk 0:00:12.1]} 42... Re2 {[%clk
0:00:06.9]} 43. Be5 {[%clk 0:00:05.8]} 43... Bxf3+ {[%clk 0:00:03.7]} 44. Rxf3
{[%clk 0:00:05.4]} 44... Rxe5 {[%clk 0:00:04.3]} 45. Rxf7 {[%clk 0:00:05.7]}
45... Rg5 {[%clk 0:00:03.4]} 46. Rxg5 {[%clk 0:00:05.3]} 46... hxg5 {[%clk
0:00:04.3]} 47. Rc7 {[%clk 0:00:04.9]} 47... Kg6 {[%clk 0:00:04.3]} 48. Kg1
{[%clk 0:00:05.1]} 48... a5 {[%clk 0:00:03]} 49. a4 {[%clk 0:00:03.4]} 49... b6
{[%clk 0:00:03.2]} 50. Kh1 {[%clk 0:00:03.4]} 50... Kh6 {[%clk 0:00:03.7]} 51.
Kg1 {[%clk 0:00:03.8]} 51... g6 {[%clk 0:00:04.1]} 52. Rb7 {[%clk 0:00:02.6]}
52... g4 {[%clk 0:00:03.3]} 53. hxg4 {[%clk 0:00:01.6]} 53... Kg5 {[%clk
0:00:04.1]} 54. Rg7 {[%clk 0:00:01.4]} 54... Rb4 {[%clk 0:00:04.8]} 55. Kf1
{[%clk 0:00:01.1]} 55... Rxg4 {[%clk 0:00:05.5]} 0-1

[Event "Late-Titled-Tuesday-Blitz-September-19-2023"]
[Site "Chess.com"]
[Date "2023.09.19"]
[Round "3"]
[White "DanielDardha2005"]
[Black "lamomiajunior"]
[Result "1-0"]
[WhiteElo "2923"]
[BlackElo "2647"]
[TimeControl "180+1"]
[EndTime "14:27:46 PDT"]
[Termination "DanielDardha2005 won by resignation"]

1. d4 {[%clk 0:03:00.9]} 1... Nf6 {[%clk 0:02:59.9]} 2. Bg5 {[%clk 0:03:00.9]}
2... d5 {[%clk 0:02:58.6]} 3. e3 {[%clk 0:03:00.8]} 3... c6 {[%clk 0:02:51.9]}
4. c4 {[%clk 0:02:56]} 4... e6 {[%clk 0:02:40.6]} 5. Nc3 {[%clk 0:02:53.9]} 5...
Nbd7 {[%clk 0:02:39.4]} 6. Nf3 {[%clk 0:02:49.9]} 6... Be7 {[%clk 0:02:39.5]} 7.
Rc1 {[%clk 0:02:47.1]} 7... h6 {[%clk 0:02:38.1]} 8. Bh4 {[%clk 0:02:43.1]} 8...
O-O {[%clk 0:02:38.3]} 9. Bd3 {[%clk 0:02:42.2]} 9... dxc4 {[%clk 0:02:36.3]}
10. Bxc4 {[%clk 0:02:43.1]} 10... b5 {[%clk 0:02:36.8]} 11. Be2 {[%clk 0:02:42]}
11... Bb7 {[%clk 0:02:37.3]} 12. O-O {[%clk 0:02:42]} 12... Rc8 {[%clk
0:02:36.3]} 13. Ne5 {[%clk 0:02:34.7]} 13... Nxe5 {[%clk 0:02:20.3]} 14. dxe5
{[%clk 0:02:35.6]} 14... Nd7 {[%clk 0:02:20.9]} 15. Bxe7 {[%clk 0:02:31.9]}
15... Qxe7 {[%clk 0:02:21.8]} 16. f4 {[%clk 0:02:11.2]} 16... a6 {[%clk
0:02:18.5]} 17. Ne4 {[%clk 0:02:11.1]} 17... c5 {[%clk 0:02:11.8]} 18. Nd6
{[%clk 0:02:11.1]} 18... Rc7 {[%clk 0:02:12.4]} 19. a4 {[%clk 0:02:01.2]} 19...
b4 {[%clk 0:01:54.9]} 20. a5 {[%clk 0:01:48.8]} 20... Rd8 {[%clk 0:01:52.3]} 21.
Bd3 {[%clk 0:01:41.9]} 21... f6 {[%clk 0:00:58.2]} 22. Nxb7 {[%clk 0:01:22.7]}
22... Rxb7 {[%clk 0:00:58.1]} 23. Qb3 {[%clk 0:00:54]} 23... fxe5 {[%clk
0:00:49.3]} 24. f5 {[%clk 0:00:54.3]} 24... Nf6 {[%clk 0:00:39.1]} 25. fxe6
{[%clk 0:00:47.4]} 25... Rd6 {[%clk 0:00:38.7]} 26. Rxc5 {[%clk 0:00:39.3]}
26... Rb8 {[%clk 0:00:19.3]} 27. Rxe5 {[%clk 0:00:36.6]} 27... Rbd8 {[%clk
0:00:19.4]} 28. Bg6 {[%clk 0:00:32.6]} 28... Rd2 {[%clk 0:00:16.2]} 29. Ref5
{[%clk 0:00:20.4]} 29... R2d6 {[%clk 0:00:14.5]} 30. Bf7+ {[%clk 0:00:16.3]}
30... Kh8 {[%clk 0:00:15]} 31. Qxb4 {[%clk 0:00:16.9]} 31... Rxe6 {[%clk
0:00:14.3]} 32. Qxe7 {[%clk 0:00:14.7]} 32... Rxe7 {[%clk 0:00:15.2]} 33. Bc4
{[%clk 0:00:15.2]} 33... Rd6 {[%clk 0:00:13.2]} 34. Re1 {[%clk 0:00:10.2]} 34...
Re4 {[%clk 0:00:11.4]} 35. b3 {[%clk 0:00:10.3]} 35... Re7 {[%clk 0:00:10.3]}
36. Rc5 {[%clk 0:00:10.2]} 36... Ne4 {[%clk 0:00:08.6]} 37. Rc8+ {[%clk
0:00:10.4]} 37... Kh7 {[%clk 0:00:08.8]} 38. Ra8 {[%clk 0:00:09.5]} 38... Nc5
{[%clk 0:00:07.9]} 39. Kf1 {[%clk 0:00:09.7]} 39... Rb7 {[%clk 0:00:05.4]} 40.
Ke2 {[%clk 0:00:08.3]} 40... Nxb3 {[%clk 0:00:05]} 41. Bd3+ {[%clk 0:00:08.8]}
41... g6 {[%clk 0:00:04.7]} 42. Rxa6 {[%clk 0:00:06.2]} 42... Rxa6 {[%clk
0:00:04]} 43. Bxa6 {[%clk 0:00:06.3]} 43... Ra7 {[%clk 0:00:04.9]} 44. Bc4
{[%clk 0:00:05.8]} 44... Nxa5 {[%clk 0:00:05.2]} 45. Bd5 {[%clk 0:00:06.5]}
45... Rd7 {[%clk 0:00:05.2]} 46. Rd1 {[%clk 0:00:06.8]} 46... Re7 {[%clk
0:00:05]} 47. Ra1 {[%clk 0:00:05]} 47... Ra7 {[%clk 0:00:02.8]} 48. Kd3 {[%clk
0:00:05.4]} 48... Nc6 {[%clk 0:00:03.1]} 49. Rxa7+ {[%clk 0:00:04.5]} 49... Nxa7
{[%clk 0:00:04]} 50. Kd4 {[%clk 0:00:05.1]} 50... Nc8 {[%clk 0:00:04.6]} 51. Ke5
{[%clk 0:00:05.2]} 51... Kg7 {[%clk 0:00:05.5]} 52. Ke6 {[%clk 0:00:05.5]} 52...
Nb6 {[%clk 0:00:06.1]} 53. Bb3 {[%clk 0:00:05.7]} 53... Na8 {[%clk 0:00:04.4]}
54. Kd6 {[%clk 0:00:06]} 54... Nb6 {[%clk 0:00:04.6]} 55. Kc7 {[%clk 0:00:06.3]}
55... Na8+ {[%clk 0:00:03.4]} 56. Kb7 {[%clk 0:00:07]} 1-0

[Event "Late-Titled-Tuesday-Blitz-September-19-2023"]
[Site "Chess.com"]
[Date "2023.09.19"]
[Round "3"]
[White "WindWhistler11"]
[Black "valemava"]
[Result "1-0"]
[WhiteElo "2479"]
[BlackElo "2283"]
[TimeControl "180+1"]
[EndTime "14:27:51 PDT"]
[Termination "WindWhistler11 won on time"]

1. Nf3 {[%clk 0:03:00.9]} 1... b5 {[%clk 0:02:49.8]} 2. e3 {[%clk 0:02:55.9]}
2... a6 {[%clk 0:02:47.5]} 3. a4 {[%clk 0:02:54]} 3... b4 {[%clk 0:02:47.5]} 4.
c3 {[%clk 0:02:53.8]} 4... a5 {[%clk 0:02:47.2]} 5. d4 {[%clk 0:02:49.2]} 5...
e6 {[%clk 0:02:46.3]} 6. Bd3 {[%clk 0:02:45.9]} 6... Nf6 {[%clk 0:02:45.7]} 7.
Nbd2 {[%clk 0:02:36.5]} 7... Bb7 {[%clk 0:02:44.4]} 8. Qe2 {[%clk 0:02:29.8]}
8... c5 {[%clk 0:02:41.7]} 9. O-O {[%clk 0:02:22.5]} 9... Be7 {[%clk 0:02:36.1]}
10. e4 {[%clk 0:02:17.8]} 10... Ba6 {[%clk 0:02:05.1]} 11. d5 {[%clk 0:01:58.4]}
11... Bxd3 {[%clk 0:02:03]} 12. Qxd3 {[%clk 0:01:56.3]} 12... exd5 {[%clk
0:01:54.6]} 13. e5 {[%clk 0:01:48.7]} 13... c4 {[%clk 0:01:54.1]} 14. Qf5 {[%clk
0:01:38.3]} 14... g6 {[%clk 0:01:49.1]} 15. Qf4 {[%clk 0:01:32.1]} 15... Nh5
{[%clk 0:01:46.9]} 16. Qd4 {[%clk 0:01:26.5]} 16... Nc6 {[%clk 0:01:16.3]} 17.
Qxd5 {[%clk 0:01:22.2]} 17... Ng7 {[%clk 0:01:09.8]} 18. Nxc4 {[%clk 0:01:17]}
18... O-O {[%clk 0:01:08.7]} 19. Bh6 {[%clk 0:01:13.7]} 19... Re8 {[%clk
0:01:07]} 20. Ne3 {[%clk 0:01:12.9]} 20... Ne6 {[%clk 0:01:03.1]} 21. Rad1
{[%clk 0:01:04.4]} 21... bxc3 {[%clk 0:01:02.7]} 22. bxc3 {[%clk 0:01:04.3]}
22... Ra7 {[%clk 0:01:00.7]} 23. Ng4 {[%clk 0:01:00.5]} 23... Qb6 {[%clk
0:00:47.8]} 24. Be3 {[%clk 0:00:48.6]} 24... Qb7 {[%clk 0:00:47.5]} 25. Bxa7
{[%clk 0:00:46.6]} 25... Qxa7 {[%clk 0:00:48.4]} 26. Qxd7 {[%clk 0:00:45.3]}
26... Qxd7 {[%clk 0:00:47.4]} 27. Rxd7 {[%clk 0:00:44.7]} 27... Nc5 {[%clk
0:00:34.2]} 28. Rc7 {[%clk 0:00:39.6]} 28... Nd8 {[%clk 0:00:33.9]} 29. Rb1
{[%clk 0:00:18.1]} 29... Nde6 {[%clk 0:00:33.3]} 30. Ra7 {[%clk 0:00:17.9]}
30... h5 {[%clk 0:00:24.5]} 31. Ne3 {[%clk 0:00:17.3]} 31... Nxa4 {[%clk
0:00:19.8]} 32. Rxa5 {[%clk 0:00:16.3]} 32... Nxc3 {[%clk 0:00:19]} 33. Rba1
{[%clk 0:00:16.6]} 33... Ne2+ {[%clk 0:00:16.7]} 34. Kf1 {[%clk 0:00:16.4]}
34... N2f4 {[%clk 0:00:16.7]} 35. g3 {[%clk 0:00:15.5]} 35... Nh3 {[%clk
0:00:16.4]} 36. Ra8 {[%clk 0:00:15.2]} 36... Rxa8 {[%clk 0:00:15.7]} 37. Rxa8+
{[%clk 0:00:16]} 37... Kg7 {[%clk 0:00:16.3]} 38. Nd5 {[%clk 0:00:15.2]} 38...
Bc5 {[%clk 0:00:15.4]} 39. Ra2 {[%clk 0:00:09.4]} 39... g5 {[%clk 0:00:14.2]}
40. Nf6 {[%clk 0:00:09.1]} 40... g4 {[%clk 0:00:14.2]} 41. Nh4 {[%clk
0:00:08.8]} 41... Kh6 {[%clk 0:00:13.2]} 42. Nf5+ {[%clk 0:00:08.9]} 42... Kg5
{[%clk 0:00:10.9]} 43. Nd6 {[%clk 0:00:09.1]} 43... Kg6 {[%clk 0:00:09.2]} 44.
Nfe4 {[%clk 0:00:08.7]} 44... Bd4 {[%clk 0:00:08.2]} 45. Ra7 {[%clk 0:00:07.2]}
45... Bxe5 {[%clk 0:00:08.2]} 46. Nxf7 {[%clk 0:00:06.6]} 46... Bd4 {[%clk
0:00:05.9]} 47. Nfd6 {[%clk 0:00:05.6]} 47... Bxa7 {[%clk 0:00:05.3]} 48. Nc8
{[%clk 0:00:04.5]} 48... Bd4 {[%clk 0:00:04.8]} 49. Ne7+ {[%clk 0:00:05]} 49...
Kf7 {[%clk 0:00:04.3]} 50. Nc6 {[%clk 0:00:05.8]} 50... Bf6 {[%clk 0:00:03.8]}
51. Nd6+ {[%clk 0:00:05.6]} 51... Kg6 {[%clk 0:00:03.5]} 52. Nf5 {[%clk
0:00:06.5]} 52... Kxf5 {[%clk 0:00:02.5]} 53. Nb4 {[%clk 0:00:07.2]} 53... Ke4
{[%clk 0:00:02.3]} 54. Nc6 {[%clk 0:00:07.6]} 54... Nhg5 {[%clk 0:00:02.3]} 55.
Nb4 {[%clk 0:00:08.2]} 55... Bd4 {[%clk 0:00:02.6]} 56. f3+ {[%clk 0:00:08.6]}
56... Kxf3 {[%clk 0:00:03]} 57. Nc2 {[%clk 0:00:09.4]} 57... Be3 {[%clk
0:00:02.2]} 58. Ne1+ {[%clk 0:00:10.3]} 58... Ke4 {[%clk 0:00:01.9]} 59. Nc2
{[%clk 0:00:11.2]} 59... Nd4 {[%clk 0:00:02.5]} 60. Ne1 {[%clk 0:00:11.6]} 60...
Ndf3 {[%clk 0:00:03.1]} 61. Kg2 {[%clk 0:00:12.4]} 61... Nd2 {[%clk 0:00:03.9]}
62. Nc2 {[%clk 0:00:12.5]} 62... Nc4 {[%clk 0:00:03.3]} 63. Nb4 {[%clk
0:00:13.4]} 63... Kd4 {[%clk 0:00:02.7]} 64. h4 {[%clk 0:00:14.3]} 64... Nf3
{[%clk 0:00:01.3]} 65. Nc6+ {[%clk 0:00:15.2]} 1-0

[Event "Late-Titled-Tuesday-Blitz-September-19-2023"]
[Site "Chess.com"]
[Date "2023.09.19"]
[Round "3"]
[White "laskakid"]
[Black "ErikRonka"]
[Result "0-1"]
[WhiteElo "2289"]
[BlackElo "2534"]
[TimeControl "180+1"]
[EndTime "14:27:53 PDT"]
[Termination "ErikRonka won on time"]

1. d4 {[%clk 0:03:00.9]} 1... d5 {[%clk 0:02:59.6]} 2. c4 {[%clk 0:03:00.4]}
2... c6 {[%clk 0:02:55.2]} 3. cxd5 {[%clk 0:03:00]} 3... cxd5 {[%clk 0:02:55.1]}
4. Bf4 {[%clk 0:03:00.1]} 4... Nc6 {[%clk 0:02:51.2]} 5. e3 {[%clk 0:02:59.9]}
5... a6 {[%clk 0:02:50.7]} 6. Nc3 {[%clk 0:02:58.3]} 6... Nf6 {[%clk 0:02:50.3]}
7. Be2 {[%clk 0:02:55.6]} 7... Bf5 {[%clk 0:02:19.1]} 8. Nf3 {[%clk 0:02:55.1]}
8... e6 {[%clk 0:02:18.6]} 9. Qb3 {[%clk 0:02:54.7]} 9... Qd7 {[%clk 0:02:01.1]}
10. O-O {[%clk 0:02:31.3]} 10... Be7 {[%clk 0:01:59.7]} 11. Na4 {[%clk
0:02:24.7]} 11... Ra7 {[%clk 0:01:24]} 12. Rfc1 {[%clk 0:01:54.4]} 12... O-O
{[%clk 0:01:19.6]} 13. Nc5 {[%clk 0:01:54]} 13... Bxc5 {[%clk 0:01:15.8]} 14.
Rxc5 {[%clk 0:01:53.9]} 14... Rc8 {[%clk 0:01:04.5]} 15. Qb6 {[%clk 0:01:23.6]}
15... Raa8 {[%clk 0:01:01.5]} 16. Nh4 {[%clk 0:01:02.6]} 16... Bg6 {[%clk
0:00:55.6]} 17. Nxg6 {[%clk 0:01:02.6]} 17... hxg6 {[%clk 0:00:56.5]} 18. Rac1
{[%clk 0:00:59.6]} 18... Qe7 {[%clk 0:00:26]} 19. R5c2 {[%clk 0:00:48.9]} 19...
Qd7 {[%clk 0:00:24.8]} 20. h3 {[%clk 0:00:47.9]} 20... Ne8 {[%clk 0:00:19.3]}
21. b4 {[%clk 0:00:42.8]} 21... Ne7 {[%clk 0:00:11.6]} 22. Qa5 {[%clk
0:00:27.5]} 22... Rxc2 {[%clk 0:00:10.2]} 23. Rxc2 {[%clk 0:00:27.2]} 23... Rc8
{[%clk 0:00:11.1]} 24. Rc5 {[%clk 0:00:23.6]} 24... Nd6 {[%clk 0:00:06.5]} 25.
Bxd6 {[%clk 0:00:20]} 25... Qxd6 {[%clk 0:00:06]} 26. Qa3 {[%clk 0:00:15.7]}
26... Rc6 {[%clk 0:00:05.6]} 27. Qc3 {[%clk 0:00:15.2]} 27... Qd7 {[%clk
0:00:05.1]} 28. Bd1 {[%clk 0:00:12.5]} 28... Kf8 {[%clk 0:00:04.4]} 29. Bc2
{[%clk 0:00:11.4]} 29... Ke8 {[%clk 0:00:03.9]} 30. a3 {[%clk 0:00:11.6]} 30...
Kd8 {[%clk 0:00:03.9]} 31. Bd3 {[%clk 0:00:11]} 31... b5 {[%clk 0:00:03.6]} 32.
Be2 {[%clk 0:00:09.9]} 32... Qd6 {[%clk 0:00:03.3]} 33. Bf3 {[%clk 0:00:09.8]}
33... Kd7 {[%clk 0:00:03.7]} 34. Be2 {[%clk 0:00:09.8]} 34... Nc8 {[%clk
0:00:04.2]} 35. g3 {[%clk 0:00:07.8]} 35... Nb6 {[%clk 0:00:04.5]} 36. Bf1
{[%clk 0:00:06.7]} 36... Nc4 {[%clk 0:00:04.5]} 37. Bxc4 {[%clk 0:00:05.3]}
37... dxc4 {[%clk 0:00:04.6]} 38. e4 {[%clk 0:00:04.2]} 38... Rxc5 {[%clk
0:00:04.4]} 39. bxc5 {[%clk 0:00:04.1]} 39... Qc6 {[%clk 0:00:03.4]} 40. d5
{[%clk 0:00:03.4]} 40... exd5 {[%clk 0:00:03.4]} 41. Qxg7 {[%clk 0:00:03.4]}
41... Qxc5 {[%clk 0:00:03.7]} 42. Qxf7+ {[%clk 0:00:03.7]} 42... Kc6 {[%clk
0:00:03.7]} 43. Qe6+ {[%clk 0:00:03.1]} 43... Qd6 {[%clk 0:00:03.3]} 44. exd5+
{[%clk 0:00:02.4]} 44... Kc5 {[%clk 0:00:02.8]} 45. Qe3+ {[%clk 0:00:02.4]}
45... Kxd5 {[%clk 0:00:02.9]} 46. Qd2+ {[%clk 0:00:02.7]} 46... Kc5 {[%clk
0:00:02.4]} 47. Qe3+ {[%clk 0:00:03.1]} 47... Qd4 {[%clk 0:00:02.1]} 48. Qe7+
{[%clk 0:00:02.9]} 48... Qd6 {[%clk 0:00:02.7]} 49. Qe3+ {[%clk 0:00:03]} 49...
Kc6 {[%clk 0:00:03.6]} 50. Qe4+ {[%clk 0:00:03]} 50... Qd5 {[%clk 0:00:03.7]}
51. Qe8+ {[%clk 0:00:02.9]} 51... Kc5 {[%clk 0:00:04.6]} 52. Qc8+ {[%clk
0:00:02.8]} 52... Kd4 {[%clk 0:00:04.7]} 53. Qg4+ {[%clk 0:00:02.9]} 53... Kd3
{[%clk 0:00:05]} 54. Qxg6+ {[%clk 0:00:02.8]} 54... Kd2 {[%clk 0:00:04.8]} 55.
Qh6+ {[%clk 0:00:02.7]} 55... Kd1 {[%clk 0:00:04.6]} 56. Qg6 {[%clk 0:00:02.1]}
56... c3 {[%clk 0:00:04.4]} 57. Qb1+ {[%clk 0:00:01.8]} 57... Kd2 {[%clk
0:00:04.2]} 0-1

[Event "Late-Titled-Tuesday-Blitz-September-19-2023"]
[Site "Chess.com"]
[Date "2023.09.19"]
[Round "3"]
[White "atigerman"]
[Black "Hrant_ChessMood"]
[Result "1-0"]
[WhiteElo "2667"]
[BlackElo "2896"]
[TimeControl "180+1"]
[EndTime "14:27:54 PDT"]
[Termination "atigerman won on time"]

1. e4 {[%clk 0:03:00.9]} 1... c6 {[%clk 0:02:53.9]} 2. Nc3 {[%clk 0:03:00.2]}
2... d5 {[%clk 0:02:54.4]} 3. d4 {[%clk 0:03:00.3]} 3... dxe4 {[%clk 0:02:53.9]}
4. Nxe4 {[%clk 0:03:01.2]} 4... Bf5 {[%clk 0:02:53.5]} 5. Ng3 {[%clk 0:03:01.4]}
5... Bg6 {[%clk 0:02:53.7]} 6. h4 {[%clk 0:03:02.2]} 6... h6 {[%clk 0:02:53.4]}
7. Nf3 {[%clk 0:03:03]} 7... e6 {[%clk 0:02:52.2]} 8. h5 {[%clk 0:02:59.5]} 8...
Bh7 {[%clk 0:02:52.3]} 9. Bd3 {[%clk 0:03:00.2]} 9... Bxd3 {[%clk 0:02:50.4]}
10. Qxd3 {[%clk 0:03:01.1]} 10... Nf6 {[%clk 0:02:49.3]} 11. Bd2 {[%clk
0:03:00.7]} 11... c5 {[%clk 0:02:48.2]} 12. O-O-O {[%clk 0:02:57.8]} 12... Nc6
{[%clk 0:02:45.4]} 13. Be3 {[%clk 0:02:53.2]} 13... Qa5 {[%clk 0:02:37.9]} 14.
Qb3 {[%clk 0:02:32.9]} 14... O-O-O {[%clk 0:02:31.7]} 15. a3 {[%clk 0:02:20.3]}
15... cxd4 {[%clk 0:02:17]} 16. Nxd4 {[%clk 0:02:17]} 16... Nxd4 {[%clk
0:02:16.5]} 17. Bxd4 {[%clk 0:01:59]} 17... Bd6 {[%clk 0:02:15.1]} 18. Kb1
{[%clk 0:01:43.7]} 18... Kb8 {[%clk 0:02:07.8]} 19. Qf3 {[%clk 0:01:35.2]} 19...
Qg5 {[%clk 0:01:57.9]} 20. Ne4 {[%clk 0:01:25.2]} 20... Nxe4 {[%clk 0:01:53.3]}
21. Qxe4 {[%clk 0:01:26.1]} 21... Rhg8 {[%clk 0:01:42.5]} 22. Rd3 {[%clk
0:01:20.1]} 22... Bc7 {[%clk 0:01:31.8]} 23. g4 {[%clk 0:00:58.6]} 23... Qf4
{[%clk 0:01:24]} 24. Qxf4 {[%clk 0:00:29.8]} 24... Bxf4 {[%clk 0:01:24.9]} 25.
Rhd1 {[%clk 0:00:30.1]} 25... Bc7 {[%clk 0:01:16.2]} 26. Bc3 {[%clk 0:00:20.8]}
26... Rxd3 {[%clk 0:01:14.8]} 27. Rxd3 {[%clk 0:00:20.8]} 27... Kc8 {[%clk
0:01:15.7]} 28. Rf3 {[%clk 0:00:20.9]} 28... f6 {[%clk 0:01:15.8]} 29. Bd2
{[%clk 0:00:18.7]} 29... Bb6 {[%clk 0:01:12.1]} 30. c4 {[%clk 0:00:18.5]} 30...
e5 {[%clk 0:01:11.5]} 31. Kc2 {[%clk 0:00:18.4]} 31... Kd7 {[%clk 0:01:10.1]}
32. Rd3+ {[%clk 0:00:18]} 32... Ke6 {[%clk 0:01:09]} 33. f3 {[%clk 0:00:18.7]}
33... Rc8 {[%clk 0:01:07.2]} 34. b3 {[%clk 0:00:18.6]} 34... Bc5 {[%clk
0:00:58.4]} 35. b4 {[%clk 0:00:18.1]} 35... Bd4 {[%clk 0:00:55.3]} 36. Kb3
{[%clk 0:00:18.7]} 36... f5 {[%clk 0:00:52.6]} 37. Bc3 {[%clk 0:00:15.7]} 37...
Bxc3 {[%clk 0:00:50.7]} 38. Kxc3 {[%clk 0:00:15.5]} 38... fxg4 {[%clk
0:00:41.5]} 39. fxg4 {[%clk 0:00:15.5]} 39... Rf8 {[%clk 0:00:42.4]} 40. c5
{[%clk 0:00:15.4]} 40... e4 {[%clk 0:00:38.5]} 41. Rd6+ {[%clk 0:00:10.1]} 41...
Ke5 {[%clk 0:00:39]} 42. Rd7 {[%clk 0:00:10.3]} 42... b5 {[%clk 0:00:30.9]} 43.
Re7+ {[%clk 0:00:04.9]} 43... Kd5 {[%clk 0:00:31]} 44. Rd7+ {[%clk 0:00:04.9]}
44... Ke5 {[%clk 0:00:31.2]} 45. Re7+ {[%clk 0:00:05.3]} 45... Kf4 {[%clk
0:00:26.7]} 46. Rxa7 {[%clk 0:00:04.1]} 46... e3 {[%clk 0:00:25.4]} 47. Re7
{[%clk 0:00:04.2]} 47... Kf3 {[%clk 0:00:22.5]} 48. a4 {[%clk 0:00:03.8]} 48...
bxa4 {[%clk 0:00:20.6]} 49. b5 {[%clk 0:00:04.3]} 49... e2 {[%clk 0:00:18.6]}
50. b6 {[%clk 0:00:03.9]} 50... Rb8 {[%clk 0:00:04.4]} 51. Kb4 {[%clk
0:00:03.7]} 51... Rb7 {[%clk 0:00:03.4]} 52. Rxe2 {[%clk 0:00:01.8]} 52... Kxe2
{[%clk 0:00:03]} 53. Kxa4 {[%clk 0:00:02.7]} 53... Kf3 {[%clk 0:00:01.6]} 54.
Kb5 {[%clk 0:00:03.4]} 54... Re7 {[%clk 0:00:01.2]} 55. c6 {[%clk 0:00:03.5]}
55... Re1 {[%clk 0:00:02.1]} 56. b7 {[%clk 0:00:01.7]} 56... Rb1+ {[%clk
0:00:01.8]} 57. Kc5 {[%clk 0:00:02.6]} 57... Kxg4 {[%clk 0:00:01]} 58. c7 {[%clk
0:00:02.8]} 1-0